fUST/lending_fUST_20250516
["ID","MTS","AMOUNT","RATE_DAILY","PERIOD"]
[361237154,1747385438324,-2802.18,0.00013698,2]
[361237155,1747385438333,-837.43,0.00013698,2]
[361237156,1747385438343,-757.62,0.00013698,2]
[361237157,1747385438353,-450.0,0.00013698,2]
[361237158,1747385438364,-1520.18,0.00013698,2]
[361237159,1747385438373,-2078.48,0.00013698,2]
[361237160,1747385438383,-676.22,0.00013698,2]
[361237161,1747385438393,-450.0,0.00013698,2]
[361237162,1747385438402,-741.69,0.00013698,2]
[361237163,1747385438412,-450.0,0.00013698,2]
[361237164,1747385438422,-450.0,0.00013698,2]
[361237165,1747385438432,-450.0,0.00013698,2]
[361237166,1747385438442,-450.0,0.00013698,2]
[361237167,1747385438451,-912.04,0.00013698,2]
[361237168,1747385438460,-450.0,0.00013698,2]
[361237169,1747385438470,-1924.06,0.00013698,2]
[361237170,1747385438480,-450.0,0.00013698,2]
[361237171,1747385438490,-1484.15,0.00013698,2]
[361237172,1747385438500,-450.0,0.00013698,2]
[361237173,1747385438510,-1716.67,0.00013698,2]
[361237174,1747385438520,-529.998472,0.00013699,2]
[361237175,1747385438529,-500.0,0.00013699,2]
[361237176,1747385438538,-500.0,0.00013699,2]
[361237177,1747385438548,-500.0,0.00013699,2]
[361237178,1747385438558,-635.61720481,0.00013699,2]
[361237179,1747385438567,-363.2556249,0.000137,2]
[361237180,1747385438579,-363.2556249,0.000137,2]
[361237181,1747385438589,-882.83891172,0.00013701,2]
[361237182,1747385438599,-151.847228,0.00013721,2]
[361237183,1747385438609,-155.0,0.00013767,2]
[361237184,1747385438618,-546.0,0.00013793,2]
[361237185,1747385438628,-707.0,0.00013793,2]
[361237186,1747385438637,-2237.0,0.00013793,2]
[361237187,1747385438647,-150.463,0.00013793,2]
[361237188,1747385438656,-2000.0,0.000138,2]
[361237189,1747385438666,-2000.0,0.000138,3]
[361237190,1747385438675,-363.2556249,0.000138,2]
[361237191,1747385438685,-363.2556249,0.000138,2]
[361237192,1747385438891,-882.83891172,0.00013804,2]
[361237193,1747385438901,-450.0,0.00013835,2]
[361237194,1747385438911,-450.0,0.00013835,2]
[361237195,1747385438922,-450.0,0.00013835,2]
[361237196,1747385438931,-450.0,0.00013835,2]
[361237197,1747385438941,-450.0,0.00013835,2]
[361237198,1747385438950,-1244.41,0.00013835,2]
[361237199,1747385438960,-1369.85,0.00013835,2]
[361237200,1747385438970,-450.0,0.00013835,2]
[361237201,1747385438979,-572.92,0.00013835,2]
[361237202,1747385438989,-317.75383005,0.00013835,2]
[361237203,1747385438998,-450.0,0.00013835,2]
[361237204,1747385439008,-450.0,0.00013835,2]
[361237205,1747385439017,-450.0,0.00013835,2]
[361237206,1747385439027,-450.0,0.00013835,2]
[361237207,1747385439036,-706.34,0.00013835,2]
[361237208,1747385439045,-450.0,0.00013835,2]
[361237209,1747385439055,-450.0,0.00013835,2]
[361237210,1747385439065,-588.78,0.00013835,2]
[361237211,1747385439074,-354.37580423,0.00013835,2]
[361237212,1747385439084,-450.0,0.00013835,2]
[361237213,1747385439093,-450.0,0.00013835,2]
[361237214,1747385439102,-450.0,0.00013835,2]
[361237215,1747385439111,-450.0,0.00013835,2]
[361237216,1747385439121,-450.0,0.00013835,2]
[361237217,1747385439131,-450.0,0.00013835,2]
[361237218,1747385439140,-508.53,0.00013835,2]
[361237219,1747385439149,-954.4,0.00013835,2]
[361237220,1747385439158,-450.0,0.00013835,2]
[361237221,1747385439168,-575.96,0.00013835,2]
[361237222,1747385439177,-450.0,0.00013835,2]
[361237223,1747385439186,-495.96,0.00013835,2]
[361237224,1747385439195,-450.0,0.00013835,2]
[361237225,1747385439204,-1095.64,0.00013835,2]
[361237226,1747385439213,-450.0,0.00013835,2]
[361237227,1747385439222,-450.0,0.00013835,2]
[361237228,1747385439233,-450.0,0.00013835,2]
[361237229,1747385439243,-450.0,0.00013835,2]
[361237230,1747385439252,-554.31,0.00013835,2]
[361237231,1747385439262,-1163.49,0.00013835,2]
[361237232,1747385439271,-2121.35,0.00013835,2]
[361237233,1747385439281,-450.0,0.00013835,2]
[361237234,1747385439290,-450.0,0.00013835,2]
[361237235,1747385439300,-450.0,0.00013835,2]
[361237236,1747385439310,-450.0,0.00013835,2]
[361237237,1747385439320,-1225.25,0.00013835,2]
[361237238,1747385439331,-490.84,0.00013835,2]
[361237239,1747385439340,-696.04,0.00013835,2]
[361237240,1747385439350,-454.7,0.00013835,2]
[361237241,1747385439359,-922.49,0.00013835,2]
[361237242,1747385439369,-2576.54,0.00013835,2]
[361237243,1747385439378,-450.0,0.00013835,2]
[361237244,1747385439387,-4957.84,0.00013835,2]
[361237245,1747385439397,-1046.44,0.00013835,2]
[361237246,1747385439407,-450.0,0.00013835,2]
[361237247,1747385439417,-1140.7,0.00013835,2]
[361237248,1747385439426,-595.81,0.00013835,2]
[361237249,1747385439436,-1028.75,0.00013835,2]
[361237250,1747385439446,-1201.3,0.00013835,2]
[361237251,1747385439456,-3373.46,0.00013835,2]
[361237252,1747385439465,-450.0,0.00013835,2]
[361237253,1747385439475,-1426.65,0.00013835,2]
[361237254,1747385439485,-1403.45,0.00013835,2]
[361237255,1747385439494,-4646.6,0.00013835,2]
[361237256,1747385439504,-1942.92,0.00013835,2]
[361237257,1747385439514,-826.02,0.00013835,2]
[361237258,1747385439523,-7887.42,0.00013835,2]
[361237259,1747385439533,-450.0,0.00013835,2]
[361237260,1747385439541,-6203.68,0.00013835,2]
[361237261,1747385439550,-612.62,0.00013835,2]
[361237263,1747385439559,-450.0,0.00013835,2]
[361237265,1747385439568,-450.0,0.00013835,2]
[361237266,1747385439580,-450.0,0.00013835,2]
[361237267,1747385439589,-1152.12,0.00013835,2]
[361237268,1747385439608,-450.0,0.00013835,2]
[361237269,1747385439619,-450.0,0.00013835,2]
[361237270,1747385439629,-2614.76,0.00013835,2]
[361237271,1747385439639,-450.0,0.00013835,2]
[361237272,1747385439648,-450.0,0.00013835,2]
[361237273,1747385439658,-543.35,0.00013835,2]
[361237274,1747385439668,-746.05,0.00013835,2]
[361237275,1747385439677,-1559.41,0.00013835,2]
[361237276,1747385439687,-450.0,0.00013835,2]
[361237277,1747385439696,-957.1,0.00013835,2]
[361237278,1747385439706,-727.81,0.00013835,2]
[361237279,1747385439716,-599.0,0.00013835,2]
[361237280,1747385439725,-521.15,0.00013835,2]
[361237281,1747385439735,-450.0,0.00013835,2]
[361237282,1747385439745,-2312.65,0.00013835,2]
[361237283,1747385439756,-831.75,0.00013835,2]
[361237284,1747385439766,-3232.8,0.00013835,2]
[361237285,1747385439775,-527.09890554,0.00013835,2]
[361237286,1747385439784,-3966.12,0.00013835,2]
[361237287,1747385439794,-565.45,0.00013835,2]
[361237288,1747385439805,-450.0,0.00013835,2]
[361237289,1747385439814,-450.0,0.00013835,2]
[361237290,1747385439825,-597.7,0.00013835,2]
[361237291,1747385439835,-1001.48,0.00013835,2]
[361237292,1747385439845,-1027.93,0.00013835,2]
[361237293,1747385439855,-450.0,0.00013835,2]
[361237294,1747385439865,-450.0,0.00013835,2]
[361237295,1747385439875,-450.0,0.00013835,2]
[361237296,1747385439884,-736.53,0.00013835,2]
[361237297,1747385439895,-854.29,0.00013835,2]
[361237298,1747385439905,-450.0,0.00013835,2]
[361237299,1747385439914,-450.0,0.00013835,2]
[361237300,1747385439924,-594.22,0.00013835,2]
[361237301,1747385439934,-450.0,0.00013835,2]
[361237302,1747385439943,-450.0,0.00013835,2]
[361237303,1747385439952,-524.18,0.00013835,2]
[361237304,1747385439961,-2802.18,0.00013835,2]
[361237306,1747385439971,-837.43,0.00013835,2]
[361237308,1747385439981,-757.62,0.00013835,2]
[361237310,1747385439990,-450.0,0.00013835,2]
[361237312,1747385440000,-1520.18,0.00013835,2]
[361237313,1747385440009,-2078.48,0.00013835,2]
[361237315,1747385440019,-676.22,0.00013835,2]
[361237318,1747385440029,-450.0,0.00013835,2]
[361237320,1747385440039,-450.0,0.00013835,2]
[361237322,1747385440050,-450.0,0.00013835,2]
[361237324,1747385440060,-450.0,0.00013835,2]
[361237326,1747385440070,-741.69,0.00013835,2]
[361237328,1747385440080,-450.0,0.00013835,2]
[361237329,1747385440090,-912.04,0.00013835,2]
[361237331,1747385440099,-450.0,0.00013835,2]
[361237333,1747385440110,-450.0,0.00013835,2]
[361237335,1747385440119,-1484.15,0.00013835,2]
[361237337,1747385440129,-450.0,0.00013835,2]
[361237340,1747385440139,-1716.67,0.00013835,2]
[361237342,1747385440149,-420.0,0.00013892,2]
[361237344,1747385440158,-420.0,0.00013892,2]
[361237346,1747385440168,-363.2556249,0.000139,2]
[361237348,1747385440177,-569.4591841,0.000139,2]
[361237350,1747385440187,-594.9951211,0.000139,2]
[361237352,1747385440197,-363.2556249,0.000139,2]
[361237354,1747385440206,-363.2556249,0.000139,2]
[361237356,1747385440215,-363.2556249,0.000139,2]
[361237358,1747385440225,-171.675,0.00013902,2]
[361237360,1747385440235,-882.83891172,0.00013906,2]
[361237362,1747385440245,-153.0,0.00013918,2]
[361237364,1747385440255,-153.0,0.00013918,2]
[361237366,1747385440265,-153.0,0.00013918,2]
[361237368,1747385440275,-272.3584202,0.00013918,2]
[361237370,1747385440285,-881.0,0.00013929,2]
[361237372,1747385440294,-450.0,0.00013972,2]
[361237374,1747385440304,-450.0,0.00013972,2]
[361237375,1747385440314,-450.0,0.00013972,2]
[361237376,1747385440324,-450.0,0.00013972,2]
[361237377,1747385440334,-450.0,0.00013972,2]
[361237378,1747385440344,-1244.41,0.00013972,2]
[361237379,1747385440354,-1369.85,0.00013972,2]
[361237380,1747385440365,-450.0,0.00013972,2]
[361237381,1747385440375,-572.92,0.00013972,2]
[361237382,1747385440385,-450.0,0.00013972,2]
[361237383,1747385440396,-450.0,0.00013972,2]
[361237384,1747385440405,-450.0,0.00013972,2]
[361237385,1747385440415,-450.0,0.00013972,2]
[361237387,1747385440425,-706.34,0.00013972,2]
[361237389,1747385440436,-450.0,0.00013972,2]
[361237390,1747385440445,-450.0,0.00013972,2]
[361237391,1747385440456,-588.78,0.00013972,2]
[361237392,1747385440466,-450.0,0.00013972,2]
[361237393,1747385440476,-330.37449943,0.00013972,2]
[361237394,1747385440486,-450.0,0.00013972,2]
[361237395,1747385440497,-450.0,0.00013972,2]
[361237397,1747385440508,-450.0,0.00013972,2]
[361237398,1747385440520,-450.0,0.00013972,2]
[361237399,1747385440529,-954.4,0.00013972,2]
[361237400,1747385440539,-450.0,0.00013972,2]
[361237402,1747385440550,-575.96,0.00013972,2]
[361237404,1747385440560,-450.0,0.00013972,2]
[361237406,1747385440569,-495.96,0.00013972,2]
[361237407,1747385440579,-450.0,0.00013972,2]
[361237409,1747385440589,-450.0,0.00013972,2]
[361237410,1747385440598,-1095.64,0.00013972,2]
[361237411,1747385440608,-450.0,0.00013972,2]
[361237412,1747385440618,-450.0,0.00013972,2]
[361237413,1747385440628,-450.0,0.00013972,2]
[361237414,1747385440637,-1163.49,0.00013972,2]
[361237415,1747385440647,-2121.35,0.00013972,2]
[361237416,1747385440657,-450.0,0.00013972,2]
[361237417,1747385440671,-450.0,0.00013972,2]
[361237418,1747385440681,-450.0,0.00013972,2]
[361237419,1747385440691,-450.0,0.00013972,2]
[361237420,1747385440701,-490.84,0.00013972,2]
[361237421,1747385440711,-1225.25,0.00013972,2]
[361237422,1747385440720,-696.04,0.00013972,2]
[361237423,1747385440730,-454.7,0.00013972,2]
[361237424,1747385440741,-922.49,0.00013972,2]
[361237425,1747385440753,-2576.54,0.00013972,2]
[361237426,1747385440763,-450.0,0.00013972,2]
[361237427,1747385440773,-4957.84,0.00013972,2]
[361237428,1747385440783,-1046.44,0.00013972,2]
[361237429,1747385440794,-450.0,0.00013972,2]
[361237430,1747385440803,-1140.7,0.00013972,2]
[361237431,1747385440813,-595.81,0.00013972,2]
[361237432,1747385440822,-1028.75,0.00013972,2]
[361237433,1747385440836,-1201.3,0.00013972,2]
[361237434,1747385440846,-3373.46,0.00013972,2]
[361237435,1747385440856,-450.0,0.00013972,2]
[361237436,1747385440866,-1426.65,0.00013972,2]
[361237437,1747385440876,-1403.45,0.00013972,2]
[361237438,1747385440885,-4646.6,0.00013972,2]
[361237439,1747385440895,-1942.92,0.00013972,2]
[361237440,1747385440904,-826.02,0.00013972,2]
[361237441,1747385440914,-7887.42,0.00013972,2]
[361237442,1747385440924,-450.0,0.00013972,2]
[361237443,1747385440934,-3064.35007355,0.00013972,2]
[361237444,1747385440955,-847.4791886,0.00013972,2]
[361237445,1747385440976,-2291.85073785,0.00013972,2]
[361237446,1747385440986,-612.62,0.00013972,2]
[361237447,1747385440997,-450.0,0.00013972,2]
[361237448,1747385441007,-450.0,0.00013972,2]
[361237449,1747385441017,-450.0,0.00013972,2]
[361237450,1747385441026,-1152.12,0.00013972,2]
[361237451,1747385441037,-450.0,0.00013972,2]
[361237452,1747385441047,-450.0,0.00013972,2]
[361237453,1747385441057,-2614.76,0.00013972,2]
[361237454,1747385441067,-450.0,0.00013972,2]
[361237455,1747385441078,-450.0,0.00013972,2]
[361237456,1747385441088,-543.35,0.00013972,2]
[361237457,1747385441098,-746.05,0.00013972,2]
[361237458,1747385441108,-1559.41,0.00013972,2]
[361237459,1747385441117,-450.0,0.00013972,2]
[361237460,1747385441127,-957.1,0.00013972,2]
[361237461,1747385441136,-727.81,0.00013972,2]
[361237462,1747385441145,-599.0,0.00013972,2]
[361237463,1747385441155,-521.15,0.00013972,2]
[361237464,1747385441165,-450.0,0.00013972,2]
[361237465,1747385441174,-2312.65,0.00013972,2]
[361237466,1747385441184,-831.75,0.00013972,2]
[361237467,1747385441194,-2137.06862978,0.00013972,2]
[361237468,1747385441452,-1095.73137022,0.00013972,2]
[361237469,1747385441462,-3966.12,0.00013972,2]
[361237470,1747385441471,-565.45,0.00013972,2]
[361237471,1747385441480,-450.0,0.00013972,2]
[361237472,1747385441490,-450.0,0.00013972,2]
[361237473,1747385441499,-597.7,0.00013972,2]
[361237474,1747385441508,-1001.48,0.00013972,2]
[361237475,1747385441517,-1027.93,0.00013972,2]
[361237476,1747385441527,-450.0,0.00013972,2]
[361237477,1747385441536,-450.0,0.00013972,2]
[361237478,1747385441545,-450.0,0.00013972,2]
[361237479,1747385441554,-736.53,0.00013972,2]
[361237480,1747385441563,-854.29,0.00013972,2]
[361237481,1747385441572,-450.0,0.00013972,2]
[361237482,1747385441581,-450.0,0.00013972,2]
[361237483,1747385441591,-594.22,0.00013972,2]
[361237484,1747385441601,-450.0,0.00013972,2]
[361237485,1747385441610,-450.0,0.00013972,2]
[361237486,1747385441619,-524.18,0.00013972,2]
[361237487,1747385441628,-2802.18,0.00013972,2]
[361237488,1747385441638,-837.43,0.00013972,2]
[361237489,1747385441647,-757.62,0.00013972,2]
[361237490,1747385441655,-450.0,0.00013972,2]
[361237491,1747385441664,-1520.18,0.00013972,2]
[361237492,1747385441673,-2078.48,0.00013972,2]
[361237493,1747385441681,-676.22,0.00013972,2]
[361237494,1747385441690,-450.0,0.00013972,2]
[361237495,1747385441698,-450.0,0.00013972,2]
[361237496,1747385441707,-450.0,0.00013972,2]
[361237497,1747385441717,-450.0,0.00013972,2]
[361237498,1747385441726,-741.69,0.00013972,2]
[361237499,1747385441735,-450.0,0.00013972,2]
[361237500,1747385441745,-912.04,0.00013972,2]
[361237501,1747385441756,-450.0,0.00013972,2]
[361237502,1747385441765,-450.0,0.00013972,2]
[361237503,1747385441775,-1484.15,0.00013972,2]
[361237504,1747385441785,-450.0,0.00013972,2]
[361237505,1747385441795,-151.0,0.00013972,2]
[361237506,1747385441804,-1716.67,0.00013972,2]
[361237507,1747385441814,-568.04056368,0.00013992,2]
[361237508,1747385441823,-151.0,0.00014,2]
[361237509,1747385441835,-16154.92102238,0.00014,2]
[361237510,1747385441844,-16154.92102218,0.00014,2]
[361237511,1747385441854,-16154.92102218,0.00014,2]
[361237512,1747385441863,-16154.92102218,0.00014003,2]
[361237513,1747385441873,-882.83891172,0.00014009,2]
[361237514,1747385441882,-4367.14506545,0.00014038,2]
[361237515,1747385441899,-833.82009272,0.00014038,2]
[361237524,1747385443330,-2630.50495774,0.00012411,14]
[361237526,1747385443345,-1096.86,0.00012411,14]
[361237565,1747385682468,500.0,0.000273,120]
[361237567,1747385695084,500.0,0.000273,120]
[361237568,1747385704164,500.0,0.000273,120]
[361237570,1747385711279,500.0,0.000273,120]
[361237571,1747385719328,500.0,0.000273,120]
[361237572,1747386011777,-167.09860589,0.00011957,14]
[361237573,1747386113445,-191.26170865,0.00011957,14]
[361237575,1747386429480,-281.39316666,0.00011433,2]
[361237576,1747386457359,1076.936548,0.00027397,120]
[361237577,1747386478444,450.0,0.00027397,120]
[361237578,1747386499375,-30.38732654,0.00011433,2]
[361237579,1747386499405,-121.61267346,0.00011676,2]
[361237580,1747386502005,-50.52434874,0.00011676,2]
[361237582,1747386508916,-172.5824846,0.00011584,2]
[361237583,1747386511540,-151.70063652,0.00011584,2]
[361237584,1747386514973,-305.42821687,0.00011584,2]
[361237585,1747386516800,-238.10347877,0.00011584,2]
[361237587,1747386519378,-160.25887754,0.00011584,2]
[361237588,1747386520999,-175.77105193,0.00011584,2]
[361237589,1747386524152,-169.91242968,0.00011584,2]
[361237591,1747386527449,-236.4578936,0.00011584,2]
[361237592,1747386529543,-273.32914496,0.00011584,2]
[361237593,1747386531801,-265.72981301,0.00011584,2]
[361237594,1747386533446,-389.10798108,0.00011584,2]
[361237595,1747386540390,-248.55865123,0.00011584,2]
[361237596,1747386542323,-271.01813992,0.00011584,2]
[361237597,1747386544374,-228.98186008,0.00011584,2]
[361237598,1747386545939,-279.79451778,0.00011584,2]
[361237599,1747386550390,-220.20548222,0.00011584,2]
[361237601,1747386553355,-224.59105882,0.00011584,2]
[361237602,1747386556109,-422.33179478,0.00011584,2]
[361237603,1747386559559,-230.9036542,0.00011584,2]
[361237604,1747386561276,-224.13271885,0.00011584,2]
[361237605,1747386566144,-167.620862,0.00011584,2]
[361237606,1747386569434,-373.53925239,0.00011584,2]
[361237607,1747386572182,-197.02240587,0.00011584,2]
[361237610,1747386622467,-234.5840292,0.00011392,2]
[361237611,1747386625038,-247.94018899,0.00011392,2]
[361237612,1747386627240,-245.55683349,0.00011392,2]
[361237613,1747386629486,-286.84952252,0.00011392,2]
[361237614,1747386631763,-181.19864509,0.00011392,2]
[361237621,1747386632957,-23703.87078071,0.00011392,2]
[361237622,1747386632967,-5000.0,0.00011837,2]
[361237623,1747386632976,-156.499999,0.00012,2]
[361237624,1747386632986,-155.0,0.00012143,2]
[361237625,1747386632995,-4041.0,0.000122,2]
[361237626,1747386633006,-300.0,0.00012358,2]
[361237627,1747386633015,-300.0,0.00012358,2]
[361237628,1747386633025,-500.0,0.00012899,2]
[361237629,1747386633035,-363.2556249,0.000129,2]
[361237630,1747386633044,-9818.54527668,0.000129,2]
[361237631,1747386633054,-172.8307344,0.000129,2]
[361237632,1747386633065,-363.2556249,0.00013041,2]
[361237633,1747386633075,-172.8307344,0.00013099,2]
[361237634,1747386633085,-250.0,0.0001313,2]
[361237636,1747386633094,-151.0,0.00013236,2]
[361237638,1747386633103,-207.4,0.00013236,2]
[361237640,1747386633114,-711.0,0.00013348,2]
[361237641,1747386633124,-711.0,0.00013348,2]
[361237642,1747386633135,-711.0,0.00013348,2]
[361237643,1747386633145,-711.0,0.00013348,2]
[361237644,1747386633154,-711.0,0.00013348,2]
[361237646,1747386633164,-711.0,0.00013348,2]
[361237648,1747386633174,-711.0,0.00013348,2]
[361237650,1747386633184,-711.0,0.00013348,2]
[361237652,1747386633193,-152.0,0.00013363,2]
[361237654,1747386633203,-162.9771413,0.0001337,2]
[361237656,1747386633213,-175.8374533,0.0001337,2]
[361237658,1747386633222,-153.2519427,0.0001337,2]
[361237660,1747386633231,-569.459184,0.0001337,2]
[361237662,1747386633241,-569.459184,0.0001337,2]
[361237664,1747386633251,-158.0124312,0.0001337,2]
[361237666,1747386633261,-175.8374533,0.0001337,2]
[361237668,1747386633271,-175.8374533,0.0001337,2]
[361237670,1747386633281,-569.459184,0.0001337,2]
[361237672,1747386633290,-158.0124312,0.0001337,2]
[361237674,1747386633299,-158.0124312,0.0001337,2]
[361237676,1747386633309,-569.459184,0.0001337,2]
[361237678,1747386633318,-175.8374533,0.0001337,2]
[361237680,1747386633328,-175.8374533,0.0001337,2]
[361237682,1747386633337,-158.0124312,0.0001337,2]
[361237684,1747386633346,-569.459184,0.0001337,2]
[361237686,1747386633356,-351.1119162,0.0001337,2]
[361237688,1747386633366,-569.459184,0.0001337,2]
[361237690,1747386633375,-158.0124312,0.0001337,2]
[361237692,1747386633384,-158.0124312,0.0001337,2]
[361237694,1747386633393,-569.459184,0.0001337,2]
[361237696,1747386633403,-158.0124312,0.0001337,2]
[361237698,1747386633412,-567.8560887,0.0001337,2]
[361237700,1747386633421,-158.0124312,0.0001337,2]
[361237702,1747386633433,-172.8307344,0.00013399,2]
[361237704,1747386633442,-420.0,0.00013561,2]
[361237706,1747386633451,-420.0,0.00013561,2]
[361237708,1747386633461,-160.0,0.00013621,2]
[361237710,1747386633471,-212.26722696,0.00013628,2]
[361237711,1747386633481,-160.0,0.00013628,2]
[361237713,1747386633492,-998.24360331,0.00013628,2]
[361237715,1747386633501,-160.0,0.00013628,2]
[361237717,1747386633513,-500.0,0.00013697,2]
[361237719,1747386633522,-500.0,0.00013697,2]
[361237721,1747386633532,-500.0,0.00013697,2]
[361237724,1747386633544,-500.0,0.00013697,2]
[361237726,1747386633553,-500.0,0.00013697,2]
[361237727,1747386633564,-168.89589202,0.00013697,2]
[361237729,1747386633574,-500.0,0.00013697,2]
[361237730,1747386633583,-327.85962249,0.00013697,2]
[361237731,1747386633593,-450.0,0.00013698,2]
[361237732,1747386633602,-450.0,0.00013698,2]
[361237733,1747386633611,-450.0,0.00013698,2]
[361237735,1747386633622,-1198.62,0.00013698,2]
[361237737,1747386633632,-400.0,0.00013698,2]
[361237739,1747386633642,-450.0,0.00013698,2]
[361237741,1747386633652,-400.0,0.00013698,2]
[361237743,1747386633661,-450.0,0.00013698,2]
[361237745,1747386633671,-501.3,0.00013698,2]
[361237747,1747386633680,-400.0,0.00013698,2]
[361237748,1747386633690,-400.0,0.00013698,2]
[361237749,1747386633699,-618.05,0.00013698,2]
[361237751,1747386633709,-400.0,0.00013698,2]
[361237753,1747386633719,-400.0,0.00013698,2]
[361237755,1747386633730,-450.0,0.00013698,2]
[361237756,1747386633739,-400.0,0.00013698,2]
[361237758,1747386633749,-450.0,0.00013698,2]
[361237760,1747386633759,-400.0,0.00013698,2]
[361237761,1747386633768,-400.0,0.00013698,2]
[361237762,1747386633778,-450.0,0.00013698,2]
[361237763,1747386633787,-400.0,0.00013698,2]
[361237765,1747386633797,-400.0,0.00013698,2]
[361237766,1747386633806,-400.0,0.00013698,2]
[361237768,1747386633816,-400.0,0.00013698,2]
[361237770,1747386633826,-450.0,0.00013698,2]
[361237772,1747386633835,-400.0,0.00013698,2]
[361237774,1747386633845,-400.0,0.00013698,2]
[361237777,1747386633855,-400.0,0.00013698,2]
[361237778,1747386633865,-400.0,0.00013698,2]
[361237780,1747386633874,-400.0,0.00013698,2]
[361237782,1747386633884,-400.0,0.00013698,2]
[361237785,1747386633894,-400.0,0.00013698,2]
[361237787,1747386633904,-400.0,0.00013698,2]
[361237789,1747386633915,-407.9699378,0.00013698,2]
[361237790,1747386633925,-400.0,0.00013698,2]
[361237792,1747386633934,-450.0,0.00013698,2]
[361237794,1747386633945,-400.0,0.00013698,2]
[361237795,1747386633954,-400.0,0.00013698,2]
[361237796,1747386633964,-400.0,0.00013698,2]
[361237797,1747386633974,-400.0,0.00013698,2]
[361237798,1747386633984,-400.0,0.00013698,2]
[361237799,1747386633994,-400.0,0.00013698,2]
[361237800,1747386634003,-400.0,0.00013698,2]
[361237801,1747386634014,-515.18,0.00013698,2]
[361237802,1747386634023,-229.41329124,0.00013698,2]
[361237803,1747386634033,-400.0,0.00013698,2]
[361237804,1747386634043,-552.02830356,0.00013698,2]
[361237805,1747386634062,-400.0,0.00013698,2]
[361237806,1747386634072,-400.0,0.00013698,2]
[361237807,1747386634081,-400.0,0.00013698,2]
[361237808,1747386634091,-400.0,0.00013698,2]
[361237809,1747386634101,-450.0,0.00013698,2]
[361237810,1747386634110,-400.0,0.00013698,2]
[361237811,1747386634121,-450.0,0.00013698,2]
[361237812,1747386634130,-450.0,0.00013698,2]
[361237813,1747386634140,-400.0,0.00013698,2]
[361237814,1747386634150,-400.0,0.00013698,2]
[361237815,1747386634159,-400.0,0.00013698,2]
[361237816,1747386634170,-450.0,0.00013698,2]
[361237817,1747386634179,-450.0,0.00013698,2]
[361237818,1747386634189,-400.0,0.00013698,2]
[361237819,1747386634199,-404.36234468,0.00013698,2]
[361237820,1747386634209,-400.0,0.00013698,2]
[361237821,1747386634219,-237.20591783,0.00013698,2]
[361237822,1747386634229,-400.0,0.00013698,2]
[361237823,1747386634239,-200.0,0.00013698,2]
[361237824,1747386634248,-450.0,0.00013698,2]
[361237825,1747386634258,-400.0,0.00013698,2]
[361237826,1747386634268,-401.99672014,0.00013698,2]
[361237827,1747386634277,-400.0,0.00013698,2]
[361237828,1747386634286,-450.0,0.00013698,2]
[361237829,1747386634296,-400.0,0.00013698,2]
[361237830,1747386634304,-400.0,0.00013698,2]
[361237831,1747386634313,-343.42695898,0.00013698,2]